[Event "Titled Tuesday Blitz December 13 Early 2022"]
[White "Bongo Akanga Ndjila, Barthelemy"]
[Black "Makhmudov, Shukhrat"]
[WhiteFideId "10609431"]
[BlackFideId "14200775"]
[WhiteElo "1768"]
[BlackElo "2135"]
[Result "0-1"]
[Round "06"]
[TimeControl "180+1"]
[Date "2022.12.14"]
[WhiteClock "0:00:06"]
[BlackClock "0:00:34"]

1. d4 {[%clk 0:02:38]}  Nf6 {[%clk 0:02:54]} 2. Nf3 {[%clk 0:02:37]}  d5 {[%clk 0:02:54]} 3. Bg5 {[%clk 0:02:36]}  Ne4 {[%clk 0:02:53]} 4. Bf4 {[%clk 0:02:36]}  c5 {[%clk 0:02:53]} 5. e3 {[%clk 0:02:36]}  Nc6 {[%clk 0:02:53]} 6. c3 {[%clk 0:02:37]}  Qb6 {[%clk 0:02:52]} 7. Qc1 {[%clk 0:02:36]}  Bf5 {[%clk 0:02:49]} 8. Nbd2 {[%clk 0:02:36]}  e6 {[%clk 0:02:44]} 9. a4 {[%clk 0:02:35]}  Be7 {[%clk 0:02:40]} 10. Be2 {[%clk 0:02:31]}  O-O {[%clk 0:02:39]} 11. O-O {[%clk 0:02:19]}  Rfc8 {[%clk 0:02:39]} 12. h3 {[%clk 0:02:14]}  h6 {[%clk 0:02:31]} 13. Re1 {[%clk 0:02:14]}  cxd4 {[%clk 0:02:29]} 14. exd4 {[%clk 0:02:07]}  Nb4 {[%clk 0:02:18]} 15. Qd1 {[%clk 0:01:56]}  Nxd2 {[%clk 0:02:16]} 16. a5 {[%clk 0:01:41]}  Qd8 {[%clk 0:02:14]} 17. cxb4 {[%clk 0:01:40]}  Nxf3+ {[%clk 0:02:10]} 18. Bxf3 {[%clk 0:01:39]}  Bxb4 {[%clk 0:02:10]} 19. Re2 {[%clk 0:01:31]}  Bxa5 {[%clk 0:02:09]} 20. g4 {[%clk 0:01:21]}  Bg6 {[%clk 0:02:07]} 21. h4 {[%clk 0:01:16]}  Bb6 {[%clk 0:01:54]} 22. h5 {[%clk 0:01:15]}  Bh7 {[%clk 0:01:54]} 23. Kg2 {[%clk 0:01:03]}  Rc4 {[%clk 0:01:53]} 24. Be3 {[%clk 0:00:55]}  Rac8 {[%clk 0:01:53]} 25. Rd2 {[%clk 0:00:47]}  Qd6 {[%clk 0:01:51]} 26. g5 {[%clk 0:00:45]}  hxg5 {[%clk 0:01:49]} 27. Bxg5 {[%clk 0:00:45]}  a6 {[%clk 0:01:32]} 28. h6 {[%clk 0:00:33]}  f6 {[%clk 0:01:28]} 29. Bh4 {[%clk 0:00:27]}  Qf4 {[%clk 0:01:23]} 30. Bg3 {[%clk 0:00:21]}  Qxh6 {[%clk 0:01:22]} 31. Qe2 {[%clk 0:00:16]}  Bf5 {[%clk 0:01:15]} 32. Rh1 {[%clk 0:00:15]}  Qg5 {[%clk 0:01:04]} 33. Rh5 {[%clk 0:00:11]}  Qg6 {[%clk 0:01:00]} 34. Rxf5 {[%clk 0:00:09]}  Qxf5 {[%clk 0:00:58]} 35. Bg4 {[%clk 0:00:09]}  Qe4+ {[%clk 0:00:59]} 36. Qxe4 {[%clk 0:00:09]}  dxe4 {[%clk 0:00:59]} 37. Bxe6+ {[%clk 0:00:10]}  Kf8 {[%clk 0:00:59]} 38. Bxc4 {[%clk 0:00:11]}  Rxc4 {[%clk 0:01:00]} 39. d5 {[%clk 0:00:11]}  Rd4 {[%clk 0:00:57]} 40. Rxd4 {[%clk 0:00:08]}  Bxd4 {[%clk 0:00:57]} 41. d6 {[%clk 0:00:09]}  Bxb2 {[%clk 0:00:55]} 42. Kf1 {[%clk 0:00:05]}  Ke8 {[%clk 0:00:52]} 43. Ke2 {[%clk 0:00:06]}  Bd4 {[%clk 0:00:50]} 44. Kd2 {[%clk 0:00:05]}  Kd7 {[%clk 0:00:50]} 45. Kc2 {[%clk 0:00:06]}  g5 {[%clk 0:00:49]} 46. Kb3 {[%clk 0:00:07]}  f5 {[%clk 0:00:39]} 47. Kc4 {[%clk 0:00:08]}  f4 {[%clk 0:00:34]} 48. Bh2 {[%clk 0:00:06]}  Bxf2 {[%clk 0:00:34]} 49. Kd5 {[%clk 0:00:06]}  e3 {[%clk 0:00:34]} 0-1


[Site "https://www.chess.com"]

[Event "Titled Tuesday Blitz December 13 Early 2022"]
[White "Boros, Denes"]
[Black "Makhnev, Denis"]
[WhiteFideId "722340"]
[BlackFideId "13707647"]
[WhiteElo "2464"]
[BlackElo "2507"]
[Result "0-1"]
[Round "06"]
[TimeControl "180+1"]
[Date "2022.12.13"]
[WhiteClock "0:00:13"]
[BlackClock "0:00:18"]

1. Nf3 {[%clk 0:03:00]}  Nf6 {[%clk 0:02:58]} 2. Nc3 {[%clk 0:03:00]}  d5 {[%clk 0:02:58]} 3. d4 {[%clk 0:03:00]}  e6 {[%clk 0:02:56]} 4. Bg5 {[%clk 0:03:00]}  Bb4 {[%clk 0:02:56]} 5. Qd3 {[%clk 0:03:00]}  c5 {[%clk 0:02:54]} 6. a3 {[%clk 0:02:59]}  c4 {[%clk 0:02:53]} 7. Qd2 {[%clk 0:02:59]}  Be7 {[%clk 0:02:53]} 8. Bxf6 {[%clk 0:02:59]}  Bxf6 {[%clk 0:02:53]} 9. e4 {[%clk 0:02:59]}  Nc6 {[%clk 0:02:53]} 10. h4 {[%clk 0:02:50]}  a6 {[%clk 0:02:49]} 11. Qe3 {[%clk 0:02:43]}  Be7 {[%clk 0:02:31]} 12. Be2 {[%clk 0:02:32]}  b5 {[%clk 0:02:31]} 13. h5 {[%clk 0:02:28]}  h6 {[%clk 0:02:31]} 14. O-O {[%clk 0:02:22]}  O-O {[%clk 0:02:28]} 15. Rad1 {[%clk 0:02:20]}  b4 {[%clk 0:02:27]} 16. axb4 {[%clk 0:02:19]}  Nxb4 {[%clk 0:02:27]} 17. Rd2 {[%clk 0:02:19]}  Bb7 {[%clk 0:02:23]} 18. e5 {[%clk 0:02:16]}  a5 {[%clk 0:02:03]} 19. Nd1 {[%clk 0:02:05]}  a4 {[%clk 0:02:01]} 20. c3 {[%clk 0:02:05]}  a3 {[%clk 0:01:58]} 21. bxa3 {[%clk 0:02:03]}  Rxa3 {[%clk 0:01:59]} 22. Qf4 {[%clk 0:02:02]}  Na2 {[%clk 0:01:52]} 23. Rc2 {[%clk 0:01:59]}  Bc6 {[%clk 0:01:50]} 24. Qd2 {[%clk 0:01:55]}  Qa5 {[%clk 0:01:48]} 25. Nh2 {[%clk 0:01:43]}  Rb8 {[%clk 0:01:47]} 26. f4 {[%clk 0:01:38]}  Rbb3 {[%clk 0:01:36]} 27. Rf3 {[%clk 0:01:32]}  Nxc3 {[%clk 0:01:35]} 28. Rcxc3 {[%clk 0:01:10]}  Bb4 {[%clk 0:01:28]} 29. Rxb3 {[%clk 0:01:10]}  Bxd2 {[%clk 0:01:20]} 30. Rxa3 {[%clk 0:01:11]}  Qb6 {[%clk 0:01:21]} 31. Ng4 {[%clk 0:01:00]}  Qxd4+ {[%clk 0:01:20]} 32. Kh1 {[%clk 0:00:52]}  Qc5 {[%clk 0:00:47]} 33. Ra2 {[%clk 0:00:44]}  Be1 {[%clk 0:00:37]} 34. f5 {[%clk 0:00:27]}  d4 {[%clk 0:00:26]} 35. Rf1 {[%clk 0:00:27]}  exf5 {[%clk 0:00:27]} 36. Rxe1 {[%clk 0:00:25]}  fxg4 {[%clk 0:00:27]} 37. Bxg4 {[%clk 0:00:26]}  Qe7 {[%clk 0:00:20]} 38. Kg1 {[%clk 0:00:14]}  Qh4 {[%clk 0:00:20]} 39. Nf2 {[%clk 0:00:15]}  Qg3 {[%clk 0:00:18]} 40. e6 {[%clk 0:00:13]}  Qxg2# {[%clk 0:00:18]} 0-1


[Site "https://www.chess.com"]

[Event "Titled Tuesday Blitz December 13 Early 2022"]
[White "Budrewicz, Krzysztof"]
[Black "Avinash, Ramesh"]
[WhiteFideId "1127950"]
[BlackFideId "45018340"]
[WhiteElo "2188"]
[BlackElo "2264"]
[Result "1/2-1/2"]
[Round "06"]
[TimeControl "180+1"]
[Date "2022.12.14"]
[WhiteClock "0:01:09"]
[BlackClock "0:01:02"]

1. d4 {[%clk 0:03:00]}  Nf6 {[%clk 0:02:59]} 2. c4 {[%clk 0:03:00]}  g6 {[%clk 0:02:59]} 3. Nc3 {[%clk 0:03:00]}  d5 {[%clk 0:03:00]} 4. Nf3 {[%clk 0:02:59]}  Bg7 {[%clk 0:03:00]} 5. cxd5 {[%clk 0:02:56]}  Nxd5 {[%clk 0:03:00]} 6. Bd2 {[%clk 0:02:56]}  O-O {[%clk 0:02:57]} 7. e4 {[%clk 0:02:55]}  Nxc3 {[%clk 0:02:57]} 8. Bxc3 {[%clk 0:02:55]}  c5 {[%clk 0:02:58]} 9. d5 {[%clk 0:02:54]}  e6 {[%clk 0:02:53]} 10. Bxg7 {[%clk 0:02:50]}  Kxg7 {[%clk 0:02:51]} 11. Bc4 {[%clk 0:02:49]}  exd5 {[%clk 0:02:51]} 12. Bxd5 {[%clk 0:02:49]}  Nd7 {[%clk 0:02:25]} 13. Qd2 {[%clk 0:02:37]}  Nb6 {[%clk 0:02:23]} 14. Rd1 {[%clk 0:02:32]}  Nxd5 {[%clk 0:02:22]} 15. Qxd5 {[%clk 0:02:20]}  Qxd5 {[%clk 0:02:21]} 16. Rxd5 {[%clk 0:02:17]}  Be6 {[%clk 0:02:20]} 17. Rxc5 {[%clk 0:02:17]}  Rfc8 {[%clk 0:02:18]} 18. Rxc8 {[%clk 0:02:11]}  Rxc8 {[%clk 0:02:17]} 19. Kd2 {[%clk 0:02:11]}  Bxa2 {[%clk 0:02:12]} 20. Ra1 {[%clk 0:02:10]}  Bc4 {[%clk 0:02:12]} 21. Rxa7 {[%clk 0:02:04]}  Bf1 {[%clk 0:02:06]} 22. g3 {[%clk 0:02:00]}  Rd8+ {[%clk 0:02:03]} 23. Ke3 {[%clk 0:01:40]}  Rd3+ {[%clk 0:01:49]} 24. Kf4 {[%clk 0:01:40]}  Rb3 {[%clk 0:01:45]} 25. Nd2 {[%clk 0:01:36]}  Rxb2 {[%clk 0:01:45]} 26. Nxf1 {[%clk 0:01:20]}  Rxf2+ {[%clk 0:01:45]} 27. Ke3 {[%clk 0:01:17]}  Rxf1 {[%clk 0:01:45]} 28. Rxb7 {[%clk 0:01:17]}  Rh1 {[%clk 0:01:45]} 29. h4 {[%clk 0:01:17]}  Re1+ {[%clk 0:01:44]} 30. Kf3 {[%clk 0:01:17]}  Rc1 {[%clk 0:01:42]} 31. Ra7 {[%clk 0:01:17]}  Rc5 {[%clk 0:01:41]} 32. Rb7 {[%clk 0:01:16]}  h5 {[%clk 0:01:41]} 33. Ra7 {[%clk 0:01:17]}  Kf6 {[%clk 0:01:36]} 34. Rb7 {[%clk 0:01:16]}  Ra5 {[%clk 0:01:29]} 35. Rc7 {[%clk 0:01:15]}  Rb5 {[%clk 0:01:29]} 36. Kf4 {[%clk 0:01:15]}  Rb4 {[%clk 0:01:20]} 37. Rc6+ {[%clk 0:01:14]}  Kg7 {[%clk 0:01:20]} 38. Rc7 {[%clk 0:01:14]}  Rb1 {[%clk 0:01:17]} 39. Ra7 {[%clk 0:01:13]}  Rf1+ {[%clk 0:01:17]} 40. Ke3 {[%clk 0:01:13]}  Kf6 {[%clk 0:01:17]} 41. Rb7 {[%clk 0:01:12]}  Ke5 {[%clk 0:01:08]} 42. Rb5+ {[%clk 0:01:12]}  Kf6 {[%clk 0:01:08]} 43. Rb7 {[%clk 0:01:10]}  Kg7 {[%clk 0:01:08]} 44. Ke2 {[%clk 0:01:10]}  Ra1 {[%clk 0:01:05]} 45. Kf3 {[%clk 0:01:09]}  Ra5 {[%clk 0:01:04]} 46. Kf4 {[%clk 0:01:09]}  Ra1 {[%clk 0:01:02]} 47. Rc7 {[%clk 0:01:09]} 1/2-1/2


[Site "https://www.chess.com"]

[Event "Titled Tuesday Blitz December 13 Early 2022"]
[White "Buscar, Michael"]
[Black "Roebers, Jan"]
[WhiteFideId "2603616"]
[BlackFideId "1007815"]
[WhiteElo "2010"]
[BlackElo "2177"]
[Result "1-0"]
[Round "06"]
[TimeControl "180+1"]
[Date "2022.12.14"]
[WhiteClock "0:00:10"]
[BlackClock "0:00:01"]

1. Nf3 {[%clk 0:02:58]}  Nc6 {[%clk 0:02:58]} 2. g3 {[%clk 0:02:57]}  e5 {[%clk 0:02:57]} 3. Bg2 {[%clk 0:02:58]}  Nf6 {[%clk 0:02:56]} 4. c4 {[%clk 0:02:56]}  d6 {[%clk 0:02:50]} 5. Nc3 {[%clk 0:02:54]}  Bf5 {[%clk 0:02:47]} 6. O-O {[%clk 0:02:53]}  Be7 {[%clk 0:02:46]} 7. Ne1 {[%clk 0:02:49]}  O-O {[%clk 0:02:42]} 8. Nc2 {[%clk 0:02:49]}  Bg6 {[%clk 0:02:37]} 9. Ne3 {[%clk 0:02:49]}  Re8 {[%clk 0:02:31]} 10. Ncd5 {[%clk 0:02:49]}  Nxd5 {[%clk 0:02:29]} 11. Nxd5 {[%clk 0:02:44]}  Bf6 {[%clk 0:02:22]} 12. Nxf6+ {[%clk 0:02:06]}  Qxf6 {[%clk 0:02:20]} 13. d3 {[%clk 0:02:07]}  Rad8 {[%clk 0:02:15]} 14. e4 {[%clk 0:02:03]}  Nd4 {[%clk 0:02:11]} 15. Be3 {[%clk 0:02:02]}  c5 {[%clk 0:02:09]} 16. Rb1 {[%clk 0:01:58]}  b6 {[%clk 0:01:42]} 17. f4 {[%clk 0:01:57]}  exf4 {[%clk 0:01:40]} 18. gxf4 {[%clk 0:01:53]}  h6 {[%clk 0:01:17]} 19. Kh1 {[%clk 0:01:48]}  Qh4 {[%clk 0:01:12]} 20. Bxd4 {[%clk 0:01:40]}  cxd4 {[%clk 0:01:11]} 21. Qe1 {[%clk 0:01:40]}  Qxe1 {[%clk 0:01:10]} 22. Rbxe1 {[%clk 0:01:40]}  f5 {[%clk 0:01:08]} 23. e5 {[%clk 0:01:33]}  Kf7 {[%clk 0:00:58]} 24. e6+ {[%clk 0:01:27]}  Kf6 {[%clk 0:00:53]} 25. Bd5 {[%clk 0:01:28]}  Re7 {[%clk 0:00:51]} 26. Re2 {[%clk 0:01:16]}  Bh5 {[%clk 0:00:49]} 27. Rg2 {[%clk 0:01:15]}  g5 {[%clk 0:00:43]} 28. b4 {[%clk 0:00:56]}  g4 {[%clk 0:00:39]} 29. a4 {[%clk 0:00:40]}  Be8 {[%clk 0:00:37]} 30. a5 {[%clk 0:00:36]}  bxa5 {[%clk 0:00:35]} 31. b5 {[%clk 0:00:33]}  Bh5 {[%clk 0:00:32]} 32. Ra1 {[%clk 0:00:30]}  Rc7 {[%clk 0:00:26]} 33. Rxa5 {[%clk 0:00:29]}  Rh8 {[%clk 0:00:18]} 34. Rga2 {[%clk 0:00:28]}  Rhh7 {[%clk 0:00:17]} 35. Ra6 {[%clk 0:00:27]}  Rhe7 {[%clk 0:00:11]} 36. Rxd6 {[%clk 0:00:25]}  Be8 {[%clk 0:00:08]} 37. Rd8 {[%clk 0:00:22]}  Bh5 {[%clk 0:00:07]} 38. Rf8+ {[%clk 0:00:21]}  Kg7 {[%clk 0:00:06]} 39. Rxf5 {[%clk 0:00:18]}  Bg6 {[%clk 0:00:05]} 40. Re5 {[%clk 0:00:18]}  Bxd3 {[%clk 0:00:05]} 41. Ra4 {[%clk 0:00:14]}  Bc2 {[%clk 0:00:04]} 42. Rb4 {[%clk 0:00:12]}  Bg6 {[%clk 0:00:01]} 43. Be4 {[%clk 0:00:10]} 1-0


[Site "https://www.chess.com"]

[Event "Titled Tuesday Blitz December 13 Early 2022"]
[White "Chernobay, Artem"]
[Black "Rodriguez Fontecha, Marcos"]
[WhiteFideId "4167406"]
[BlackFideId "2256576"]
[WhiteElo "2474"]
[BlackElo "2263"]
[Result "1-0"]
[Round "06"]
[TimeControl "180+1"]
[Date "2022.12.14"]
[WhiteClock "0:00:13"]
[BlackClock "0:00:04"]

1. e4 {[%clk 0:03:00]}  e6 {[%clk 0:02:59]} 2. d4 {[%clk 0:03:00]}  c5 {[%clk 0:02:58]} 3. d5 {[%clk 0:02:58]}  exd5 {[%clk 0:02:59]} 4. exd5 {[%clk 0:02:58]}  d6 {[%clk 0:03:00]} 5. c4 {[%clk 0:02:56]}  Nf6 {[%clk 0:03:01]} 6. Nc3 {[%clk 0:02:56]}  Be7 {[%clk 0:03:02]} 7. Bd3 {[%clk 0:02:56]}  O-O {[%clk 0:03:03]} 8. Nge2 {[%clk 0:02:57]}  Na6 {[%clk 0:03:03]} 9. O-O {[%clk 0:02:56]}  Re8 {[%clk 0:03:03]} 10. Ng3 {[%clk 0:02:53]}  Nc7 {[%clk 0:03:01]} 11. Bf4 {[%clk 0:02:42]}  a6 {[%clk 0:02:57]} 12. a4 {[%clk 0:02:40]}  b6 {[%clk 0:02:57]} 13. h3 {[%clk 0:02:35]}  Bf8 {[%clk 0:02:56]} 14. Qf3 {[%clk 0:02:31]}  Bd7 {[%clk 0:02:40]} 15. Rfe1 {[%clk 0:02:27]}  Rb8 {[%clk 0:02:20]} 16. Nce4 {[%clk 0:02:14]}  Nxe4 {[%clk 0:02:01]} 17. Nxe4 {[%clk 0:02:15]}  Bc8 {[%clk 0:01:58]} 18. Ng5 {[%clk 0:02:08]}  g6 {[%clk 0:01:46]} 19. Bxd6 {[%clk 0:01:53]}  Qxg5 {[%clk 0:01:38]} 20. Bxc7 {[%clk 0:01:49]}  Rxe1+ {[%clk 0:01:38]} 21. Rxe1 {[%clk 0:01:50]}  Rb7 {[%clk 0:01:38]} 22. d6 {[%clk 0:01:46]}  Ra7 {[%clk 0:01:16]} 23. Re8 {[%clk 0:01:41]}  Be6 {[%clk 0:01:04]} 24. b3 {[%clk 0:01:07]}  Kg7 {[%clk 0:01:03]} 25. g3 {[%clk 0:00:54]}  Bxh3 {[%clk 0:00:54]} 26. Bd8 {[%clk 0:00:50]}  f6 {[%clk 0:00:09]} 27. Rxf8 {[%clk 0:00:49]}  Kxf8 {[%clk 0:00:08]} 28. Bxf6 {[%clk 0:00:50]}  Qc1+ {[%clk 0:00:08]} 29. Kh2 {[%clk 0:00:50]}  Bf5 {[%clk 0:00:07]} 30. Bxf5 {[%clk 0:00:46]}  gxf5 {[%clk 0:00:07]} 31. Qxf5 {[%clk 0:00:45]}  Qh6+ {[%clk 0:00:06]} 32. Kg2 {[%clk 0:00:44]}  Qg6 {[%clk 0:00:07]} 33. Be7+ {[%clk 0:00:42]}  Ke8 {[%clk 0:00:07]} 34. Qc8+ {[%clk 0:00:30]}  Kf7 {[%clk 0:00:07]} 35. d7 {[%clk 0:00:17]}  Qe4+ {[%clk 0:00:06]} 36. Kh2 {[%clk 0:00:17]}  Rxd7 {[%clk 0:00:05]} 37. Qf8+ {[%clk 0:00:13]}  Kg6 {[%clk 0:00:04]} 38. Qf6+ {[%clk 0:00:13]} 1-0


[Site "https://www.chess.com"]

[Event "Titled Tuesday Blitz December 13 Early 2022"]
[White "Chernomordik, Pavel"]
[Black "Kleiman, Jake"]
[WhiteFideId "2804530"]
[BlackFideId "2020041"]
[WhiteElo "2193"]
[BlackElo "2575"]
[Result "0-1"]
[Round "06"]
[TimeControl "180+1"]
[Date "2022.12.14"]
[WhiteClock "0:00:18"]
[BlackClock "0:00:40"]

1. e4 {[%clk 0:03:00]}  e5 {[%clk 0:02:58]} 2. Nf3 {[%clk 0:03:00]}  Nc6 {[%clk 0:02:59]} 3. Bb5 {[%clk 0:02:59]}  a6 {[%clk 0:02:59]} 4. Ba4 {[%clk 0:02:59]}  Nf6 {[%clk 0:02:59]} 5. Qe2 {[%clk 0:02:59]}  b5 {[%clk 0:03:00]} 6. Bb3 {[%clk 0:02:59]}  Bc5 {[%clk 0:03:00]} 7. a4 {[%clk 0:02:59]}  Rb8 {[%clk 0:03:00]} 8. axb5 {[%clk 0:02:58]}  axb5 {[%clk 0:03:01]} 9. c3 {[%clk 0:02:58]}  d6 {[%clk 0:03:01]} 10. h3 {[%clk 0:02:56]}  O-O {[%clk 0:03:02]} 11. d3 {[%clk 0:02:56]}  Be6 {[%clk 0:02:59]} 12. Nbd2 {[%clk 0:02:54]}  d5 {[%clk 0:02:58]} 13. Ra6 {[%clk 0:02:44]}  Rb6 {[%clk 0:02:56]} 14. Rxb6 {[%clk 0:02:42]}  Bxb6 {[%clk 0:02:56]} 15. O-O {[%clk 0:02:41]}  Re8 {[%clk 0:02:53]} 16. Rd1 {[%clk 0:02:36]}  h6 {[%clk 0:02:52]} 17. Nf1 {[%clk 0:02:28]}  Qd7 {[%clk 0:02:50]} 18. Ng3 {[%clk 0:02:23]}  Kh7 {[%clk 0:02:17]} 19. Be3 {[%clk 0:02:18]}  Bxe3 {[%clk 0:02:12]} 20. Qxe3 {[%clk 0:02:11]}  Rd8 {[%clk 0:01:54]} 21. Bc2 {[%clk 0:01:54]}  g6 {[%clk 0:01:48]} 22. Qc5 {[%clk 0:01:49]}  Qd6 {[%clk 0:01:46]} 23. Qxd6 {[%clk 0:01:44]}  cxd6 {[%clk 0:01:41]} 24. Ra1 {[%clk 0:01:43]}  dxe4 {[%clk 0:01:36]} 25. dxe4 {[%clk 0:01:38]}  b4 {[%clk 0:01:32]} 26. Ne2 {[%clk 0:01:33]}  bxc3 {[%clk 0:01:28]} 27. bxc3 {[%clk 0:01:28]}  Rc8 {[%clk 0:01:27]} 28. Ra6 {[%clk 0:01:26]}  Bc4 {[%clk 0:01:19]} 29. Rxc6 {[%clk 0:01:13]}  Rxc6 {[%clk 0:01:17]} 30. Ng3 {[%clk 0:01:12]}  Bb5 {[%clk 0:01:14]} 31. Bb3 {[%clk 0:01:09]}  Kg7 {[%clk 0:01:13]} 32. Nd2 {[%clk 0:00:49]}  Rxc3 {[%clk 0:01:12]} 33. Ngf1 {[%clk 0:00:45]}  Rc1 {[%clk 0:01:05]} 34. f3 {[%clk 0:00:44]}  Nd7 {[%clk 0:00:56]} 35. Kf2 {[%clk 0:00:41]}  Nc5 {[%clk 0:00:56]} 36. Bd5 {[%clk 0:00:40]}  Nd3+ {[%clk 0:00:56]} 37. Kg3 {[%clk 0:00:32]}  Nf4 {[%clk 0:00:57]} 38. Ne3 {[%clk 0:00:31]}  h5 {[%clk 0:00:50]} 39. Bb3 {[%clk 0:00:22]}  Re1 {[%clk 0:00:44]} 40. Ndc4 {[%clk 0:00:18]}  Bxc4 {[%clk 0:00:41]} 41. Nxc4 {[%clk 0:00:18]}  Re2 {[%clk 0:00:40]} 0-1


[Site "https://www.chess.com"]

[Event "Titled Tuesday Blitz December 13 Early 2022"]
[White "Chernov, Mikhail"]
[Black "Alice, Mateus Felizardo Viageiro"]
[WhiteFideId "24143170"]
[BlackFideId "14800047"]
[WhiteElo "2113"]
[BlackElo "2189"]
[Result "1-0"]
[Round "06"]
[TimeControl "180+1"]
[Date "2022.12.14"]
[WhiteClock "0:01:08"]
[BlackClock "0:01:39"]

1. e4 {[%clk 0:03:00]}  c5 {[%clk 0:02:58]} 2. Nf3 {[%clk 0:03:00]}  d6 {[%clk 0:02:58]} 3. d4 {[%clk 0:03:01]}  cxd4 {[%clk 0:02:58]} 4. Nxd4 {[%clk 0:03:02]}  Nf6 {[%clk 0:02:58]} 5. Nc3 {[%clk 0:02:57]}  a6 {[%clk 0:02:58]} 6. Bc4 {[%clk 0:02:56]}  e6 {[%clk 0:02:58]} 7. Bb3 {[%clk 0:02:56]}  b5 {[%clk 0:02:57]} 8. Bg5 {[%clk 0:02:55]}  Be7 {[%clk 0:02:52]} 9. Qf3 {[%clk 0:02:55]}  Bb7 {[%clk 0:02:42]} 10. O-O-O {[%clk 0:02:37]}  b4 {[%clk 0:02:35]} 11. Na4 {[%clk 0:02:22]}  Bxe4 {[%clk 0:02:32]} 12. Qe2 {[%clk 0:02:14]}  d5 {[%clk 0:02:30]} 13. f3 {[%clk 0:02:01]}  Bg6 {[%clk 0:02:24]} 14. h4 {[%clk 0:01:56]}  h6 {[%clk 0:02:16]} 15. Bxf6 {[%clk 0:01:39]}  Bxf6 {[%clk 0:02:16]} 16. Nxe6 {[%clk 0:01:39]}  fxe6 {[%clk 0:02:12]} 17. Qxe6+ {[%clk 0:01:39]}  Qe7 {[%clk 0:02:05]} 18. Qxd5 {[%clk 0:01:39]}  Bf7 {[%clk 0:01:48]} 19. Qxa8 {[%clk 0:01:32]}  O-O {[%clk 0:01:47]} 20. Rhe1 {[%clk 0:01:26]}  Qc7 {[%clk 0:01:43]} 21. Bxf7+ {[%clk 0:01:08]}  Qxf7 {[%clk 0:01:39]} 22. Qd5 {[%clk 0:01:08]} 1-0


[Site "https://www.chess.com"]

[Event "Titled Tuesday Blitz December 13 Early 2022"]
[White "Demin, Vladimir"]
[Black "Sovetbekova, Nurai"]
[WhiteFideId "4167457"]
[BlackFideId "13801910"]
[WhiteElo "2594"]
[BlackElo "1925"]
[Result "1-0"]
[Round "06"]
[TimeControl "180+1"]
[Date "2022.12.14"]
[WhiteClock "0:00:36"]
[BlackClock "0:00:04"]

1. e4 {[%clk 0:03:00]}  c5 {[%clk 0:03:00]} 2. Nf3 {[%clk 0:03:00]}  d6 {[%clk 0:03:00]} 3. d4 {[%clk 0:03:00]}  cxd4 {[%clk 0:03:01]} 4. Qxd4 {[%clk 0:03:00]}  Nc6 {[%clk 0:03:00]} 5. Bb5 {[%clk 0:02:59]}  Bd7 {[%clk 0:03:00]} 6. Bxc6 {[%clk 0:02:59]}  Bxc6 {[%clk 0:03:01]} 7. Nc3 {[%clk 0:02:59]}  Nf6 {[%clk 0:02:58]} 8. Bg5 {[%clk 0:02:59]}  e6 {[%clk 0:02:47]} 9. O-O-O {[%clk 0:02:51]}  Be7 {[%clk 0:02:45]} 10. Qd3 {[%clk 0:02:51]}  Qb6 {[%clk 0:02:36]} 11. Nd4 {[%clk 0:02:38]}  O-O {[%clk 0:02:24]} 12. Kb1 {[%clk 0:02:34]}  Rac8 {[%clk 0:02:22]} 13. h4 {[%clk 0:02:31]}  h6 {[%clk 0:02:02]} 14. f4 {[%clk 0:02:29]}  Qa5 {[%clk 0:01:36]} 15. g4 {[%clk 0:02:17]}  b5 {[%clk 0:01:33]} 16. Nxc6 {[%clk 0:02:08]}  Rxc6 {[%clk 0:01:31]} 17. Nxb5 {[%clk 0:02:07]}  Rb6 {[%clk 0:01:24]} 18. Nd4 {[%clk 0:02:06]}  Qb4 {[%clk 0:01:17]} 19. Nb3 {[%clk 0:02:04]}  a5 {[%clk 0:00:58]} 20. a3 {[%clk 0:01:57]}  Qa4 {[%clk 0:00:57]} 21. Bxf6 {[%clk 0:01:52]}  Bxf6 {[%clk 0:00:57]} 22. g5 {[%clk 0:01:53]}  Be7 {[%clk 0:00:45]} 23. Qd4 {[%clk 0:01:49]}  Qxd4 {[%clk 0:00:44]} 24. Rxd4 {[%clk 0:01:50]}  e5 {[%clk 0:00:41]} 25. fxe5 {[%clk 0:01:47]}  dxe5 {[%clk 0:00:42]} 26. Rd5 {[%clk 0:01:47]}  hxg5 {[%clk 0:00:40]} 27. hxg5 {[%clk 0:01:40]}  Bxg5 {[%clk 0:00:41]} 28. Rxe5 {[%clk 0:01:39]}  f6 {[%clk 0:00:37]} 29. Rxa5 {[%clk 0:01:38]}  Re8 {[%clk 0:00:37]} 30. Ra4 {[%clk 0:01:25]}  Rbe6 {[%clk 0:00:33]} 31. Nc5 {[%clk 0:01:18]}  Re5 {[%clk 0:00:32]} 32. b4 {[%clk 0:01:17]}  Be3 {[%clk 0:00:27]} 33. Nb7 {[%clk 0:01:04]}  Bd4 {[%clk 0:00:12]} 34. Re1 {[%clk 0:00:47]}  Rxe4 {[%clk 0:00:12]} 35. Rxe4 {[%clk 0:00:47]}  Rxe4 {[%clk 0:00:13]} 36. Ra8+ {[%clk 0:00:45]}  Kh7 {[%clk 0:00:12]} 37. Nd6 {[%clk 0:00:44]}  Re1+ {[%clk 0:00:09]} 38. Ka2 {[%clk 0:00:42]}  Be5 {[%clk 0:00:09]} 39. Nc4 {[%clk 0:00:41]}  f5 {[%clk 0:00:07]} 40. Nxe5 {[%clk 0:00:40]}  Rxe5 {[%clk 0:00:07]} 41. Rf8 {[%clk 0:00:40]}  Kg6 {[%clk 0:00:07]} 42. a4 {[%clk 0:00:40]}  Re4 {[%clk 0:00:06]} 43. Kb3 {[%clk 0:00:39]}  f4 {[%clk 0:00:07]} 44. a5 {[%clk 0:00:39]}  Re6 {[%clk 0:00:06]} 45. b5 {[%clk 0:00:39]}  Kg5 {[%clk 0:00:05]} 46. c4 {[%clk 0:00:37]}  Kg4 {[%clk 0:00:04]} 47. a6 {[%clk 0:00:37]}  f3 {[%clk 0:00:04]} 48. a7 {[%clk 0:00:37]}  Rf6 {[%clk 0:00:03]} 49. Rxf6 {[%clk 0:00:35]}  gxf6 {[%clk 0:00:03]} 50. a8=Q {[%clk 0:00:36]}  f2 {[%clk 0:00:04]} 51. Qg2+ {[%clk 0:00:36]} 1-0


[Site "https://www.chess.com"]